fUST/lending_fUST_20250819
["ID","MTS","AMOUNT","RATE_DAILY","PERIOD"]
[380194537,1755604252312,-151.0,0.00019178,2]
[380194538,1755604252322,-151.0,0.00019178,2]
[380194539,1755604252331,-242.755203,0.00019178,2]
[380194540,1755604252340,-461.69016458,0.00019178,2]
[380194541,1755604252349,-480.0,0.00019178,2]
[380194542,1755604252359,-462.09110986,0.00019178,2]
[380194543,1755604252369,-443.75382111,0.00019178,2]
[380194544,1755604252378,-1694.81,0.00019178,2]
[380194545,1755604252387,-480.0,0.00019178,2]
[380194546,1755604252396,-500.0,0.00019178,2]
[380194547,1755604252407,-500.0,0.00019178,2]
[380194548,1755604252417,-500.0,0.00019178,2]
[380194549,1755604252425,-500.0,0.00019178,2]
[380194550,1755604252435,-500.0,0.00019178,2]
[380194551,1755604252445,-500.0,0.00019178,2]
[380194552,1755604252454,-500.0,0.00019178,2]
[380194553,1755604252463,-500.0,0.00019178,2]
[380194554,1755604252472,-500.0,0.00019178,2]
[380194555,1755604252482,-500.0,0.00019178,2]
[380194556,1755604252491,-2845.04,0.00019178,2]
[380194557,1755604252499,-500.0,0.00019178,2]
[380194558,1755604252509,-500.0,0.00019178,2]
[380194559,1755604252518,-500.0,0.00019178,2]
[380194560,1755604252527,-158.02387166,0.00019178,2]
[380194561,1755604252536,-522.52579997,0.00019178,2]
[380194562,1755604252545,-480.0,0.00019178,2]
[380194563,1755604252554,-480.0,0.00019178,2]
[380194564,1755604252563,-480.0,0.00019178,2]
[380194565,1755604252572,-554.00204686,0.00019178,2]
[380194566,1755604252581,-480.0,0.00019178,2]
[380194567,1755604252591,-480.0,0.00019178,2]
[380194568,1755604252600,-460.0,0.00019178,2]
[380194569,1755604252609,-480.0,0.00019178,2]
[380194570,1755604252618,-151.0,0.00019178,2]
[380194571,1755604252705,-151.0,0.00019178,2]
[380194572,1755604252714,-151.0,0.00019178,2]
[380194573,1755604252724,-151.0,0.00019178,2]
[380194574,1755604252733,-151.0,0.00019178,2]
[380194575,1755604252742,-151.0,0.00019178,2]
[380194576,1755604252751,-151.0,0.00019178,2]
[380194577,1755604252761,-459.8299533,0.00019178,2]
[380194578,1755604252770,-151.0,0.00019178,2]
[380194579,1755604252779,-364.74665423,0.00019178,2]
[380194580,1755604252788,-480.0,0.00019178,2]
[380194581,1755604252798,-151.0,0.00019178,2]
[380194582,1755604252807,-151.0,0.00019178,2]
[380194583,1755604252819,-151.0,0.00019178,2]
[380194584,1755604252828,-480.0,0.00019178,2]
[380194585,1755604252837,-151.0,0.00019178,2]
[380194586,1755604252846,-151.0,0.00019178,2]
[380194587,1755604252855,-151.0,0.00019178,2]
[380194588,1755604252864,-1330.55,0.00019178,2]
[380194589,1755604252874,-480.0,0.00019178,2]
[380194590,1755604252883,-480.0,0.00019178,2]
[380194591,1755604252892,-480.0,0.00019178,2]
[380194592,1755604252902,-480.0,0.00019178,2]
[380194593,1755604252911,-361.98468523,0.00019178,2]
[380194594,1755604252921,-480.0,0.00019178,2]
[380194595,1755604252931,-480.0,0.00019178,2]
[380194596,1755604252940,-151.0,0.00019178,2]
[380194597,1755604252950,-480.0,0.00019178,2]
[380194598,1755604252959,-480.0,0.00019178,2]
[380194599,1755604252969,-480.0,0.00019178,2]
[380194600,1755604252978,-480.60681905,0.00019178,2]
[380194601,1755604252987,-151.0,0.00019178,2]
[380194602,1755604252997,-151.0,0.00019178,2]
[380194603,1755604253006,-151.0,0.00019178,2]
[380194604,1755604253015,-480.0,0.00019178,2]
[380194605,1755604253024,-480.0,0.00019178,2]
[380194606,1755604253033,-1390.6,0.00019178,2]
[380194607,1755604253042,-460.0,0.00019178,2]
[380194608,1755604253051,-480.0,0.00019178,2]
[380194609,1755604253061,-517.65,0.00019178,2]
[380194610,1755604253070,-480.0,0.00019178,2]
[380194611,1755604253079,-480.0,0.00019178,2]
[380194612,1755604253088,-52.39618128,0.00019178,2]
[380194613,1755604253143,10000.0,0.00018114,2]
[380194614,1755604253159,-345.11326965,0.00019178,2]
[380194615,1755604268944,-155.939263,0.00019015,2]
[380194616,1755604271108,-247.5826739,0.00019015,2]
[380194617,1755604273330,-265.04319423,0.00019015,2]
[380194618,1755604275113,-151.97667363,0.00019015,2]
[380194619,1755604278056,-276.10380504,0.00019015,2]
[380194620,1755604280151,-172.10771669,0.00019015,2]
[380194621,1755604280772,944.66893617,0.00019,2]
[380194622,1755604283053,-155.21136794,0.00019015,2]
[380194623,1755604283075,-41.08044425,0.00019022,2]
[380194624,1755604286564,-177.9260266,0.00019022,2]
[380194625,1755604288735,-80.99352915,0.00019022,2]
[380194626,1755604288758,-196.40972661,0.00019023,2]
[380194627,1755604291860,-279.19511293,0.00019023,2]
[380194628,1755604294603,-24.39516046,0.00019023,2]
[380194629,1755604294625,-184.15005139,0.00019023,2]
[380194630,1755604296665,-315.84994861,0.00019023,2]
[380194631,1755604296688,-44.92570496,0.00019023,2]
[380194632,1755604298537,1311.46913602,0.00019,2]
[380194633,1755604299463,-301.76915546,0.00019023,2]
[380194634,1755604301621,-153.30513958,0.00019023,2]
[380194635,1755604301643,-132.40421475,0.00019023,2]
[380194636,1755604303964,-270.30477173,0.00019023,2]
[380194637,1755604309101,-306.18744044,0.00019022,2]
[380194638,1755604310771,-298.39990921,0.00019022,2]
[380194639,1755604313676,-241.59045746,0.00019022,2]
[380194640,1755604314066,1823.14628474,0.00019,2]
[380194641,1755604316045,-353.82219289,0.00019022,2]
[380194642,1755604316067,-42.79887779,0.00019023,2]
[380194643,1755604318177,-54.49213573,0.00019023,2]
[380194644,1755604318199,-228.0119792,0.00019023,2]
[380194645,1755604319726,617.459134,0.00013699,2]
[380194646,1755604330094,920.71564307,0.00019,2]
[380194647,1755604359181,-288.25799454,0.00019022,2]
[380194648,1755604360840,-11.74200546,0.00019022,2]
[380194649,1755604360864,-161.08774391,0.00019023,2]
[380194650,1755604362923,-217.4410899,0.00019078,2]
[380194651,1755604365316,-251.92939213,0.00019078,2]
[380194653,1755604367009,-191.14157386,0.00019078,2]
[380194654,1755604368997,-479.69262674,0.00019078,2]
[380194655,1755604370764,-181.08103901,0.00019078,2]
[380194656,1755604373240,-186.63622741,0.00019078,2]
[380194657,1755604376038,-165.02603602,0.00019078,2]
[380194658,1755604388398,-215.32730543,0.00019078,2]
[380194659,1755604391420,-173.48406566,0.00019078,2]
[380194660,1755604394293,-180.92430959,0.00019078,2]
[380194661,1755604397120,1303.51503882,0.00018921,2]
[380194662,1755604397142,20000.0,0.00018921,2]
[380194663,1755604397164,20000.0,0.00018921,2]
[380194664,1755604397186,20000.0,0.00018921,2]
[380194665,1755604397208,20000.0,0.00018921,2]
[380194666,1755604397230,20000.0,0.00018921,2]
[380194667,1755604397252,20000.0,0.00018921,2]
[380194668,1755604397278,20000.0,0.00018921,2]
[380194669,1755604397300,20000.0,0.00018921,2]
[380194670,1755604397321,20000.0,0.00018921,2]
[380194671,1755604397345,20000.0,0.00018921,2]
[380194672,1755604397366,20000.0,0.00018921,2]
[380194673,1755604397393,-296.2387423,0.00018921,2]
[380194674,1755604408093,5000.0,0.0001861,2]
[380194675,1755604417163,296.84195414,0.0001861,2]
[380194676,1755604423473,600.0,0.00018312,2]
[380194677,1755604425598,5000.0,0.0001861,2]
[380194678,1755604442720,5000.0,0.0001861,2]
[380194679,1755604456354,936.918688,0.0001801,2]
[380194680,1755604459057,5000.0,0.0001861,2]
[380194681,1755604474528,5000.0,0.0001861,2]
[380194682,1755604491016,5000.0,0.0001861,2]
[380194683,1755604506945,5000.0,0.0001861,2]
[380194684,1755604509212,-298.37129857,0.00018722,2]
[380194685,1755604513933,-1.62870143,0.00018722,2]
[380194686,1755604513955,-277.33511143,0.00018722,2]
[380194687,1755604515724,-22.66488857,0.00018722,2]
[380194688,1755604523986,5000.0,0.0001861,2]
[380194689,1755604541522,5000.0,0.0001861,2]
[380194690,1755604557206,5000.0,0.0001861,2]
[380194691,1755604572891,5000.0,0.0001861,2]
[380194692,1755604588517,5000.0,0.0001861,2]
[380194694,1755604606506,5000.0,0.0001861,2]
[380194695,1755604623701,5000.0,0.0001861,2]
[380194696,1755604639484,5000.0,0.0001861,2]
[380194697,1755604655207,5000.0,0.0001861,2]
[380194698,1755604671061,5000.0,0.0001861,2]
[380194700,1755604687082,5000.0,0.0001861,2]
[380194701,1755604704154,2627.4310545,0.0001861,2]
[380194702,1755604704412,5006.0495881,0.00018082,2]
[380194704,1755604746169,2645.6017767,0.00017916,2]
[380194705,1755604892939,1000.0,0.00017916,2]
[380194706,1755605233747,356.38873544,0.00018255,2]
[380194707,1755605234717,178.19436772,0.00018344,2]
[380194708,1755605305727,3080.5913731,0.00017915,2]
[380194709,1755605311572,10000.0,0.00017915,2]
[380194710,1755605398790,622.331178,0.00013699,2]
[380194711,1755605409133,464.0,0.00018,2]
[380194742,1755605432548,-150.62965405,0.000189,2]
[380194743,1755605432558,-536.04,0.00018911,3]
[380194744,1755605432567,-268.02,0.00018911,3]
[380194745,1755605432577,-804.08,0.00018911,3]
[380194746,1755605432592,-1200.0,0.00018912,2]
[380194747,1755605432601,-300.0,0.00018914,2]
[380194748,1755605432611,-300.0,0.00018914,2]
[380194749,1755605432621,-300.0,0.00018914,2]
[380194750,1755605432631,-1200.0,0.00018914,2]
[380194751,1755605432640,-300.0,0.00018914,2]
[380194752,1755605432650,-7667.3121942,0.00018915,2]
[380194753,1755605432663,-500.0,0.0001892,2]
[380194754,1755605432673,-500.0,0.0001892,2]
[380194755,1755605432682,-500.0,0.0001892,2]
[380194756,1755605432691,-500.0,0.0001892,2]
[380194758,1755605432700,-279.11912715,0.0001892,2]
[380194759,1755605432709,-500.0,0.0001892,2]
[380194760,1755605432718,-500.0,0.0001892,2]
[380194761,1755605432728,-500.0,0.0001892,2]
[380194762,1755605432737,-390.41914684,0.0001892,2]
[380194763,1755605432747,-249.19186683,0.0001892,2]
[380194764,1755605432756,-500.0,0.0001892,2]
[380194765,1755605432765,-500.0,0.0001892,2]
[380194767,1755605432774,-155.19662751,0.0001892,2]
[380194769,1755605432784,-191.01470771,0.0001892,2]
[380194770,1755605432793,-500.0,0.0001892,2]
[380194771,1755605432802,-500.0,0.0001892,2]
[380194773,1755605432812,-500.0,0.0001892,2]
[380194775,1755605432821,-286.46085162,0.0001892,2]
[380194777,1755605432831,-500.0,0.0001892,2]
[380194779,1755605432840,-500.0,0.0001892,2]
[380194781,1755605432850,-500.0,0.0001892,2]
[380194783,1755605432859,-500.0,0.0001892,2]
[380194785,1755605432869,-500.0,0.0001892,2]
[380194787,1755605432878,-500.0,0.0001892,2]
[380194789,1755605432887,-500.0,0.0001892,2]
[380194791,1755605432897,-500.0,0.0001892,2]
[380194793,1755605432906,-500.0,0.0001892,2]
[380194795,1755605432916,-309.07251746,0.0001892,2]
[380194797,1755605432925,-500.0,0.0001892,2]
[380194799,1755605432934,-500.0,0.0001892,2]
[380194801,1755605432944,-500.0,0.0001892,2]
[380194803,1755605432953,-500.0,0.0001892,2]
[380194805,1755605432963,-500.0,0.0001892,2]
[380194807,1755605432972,-500.0,0.0001892,2]
[380194809,1755605432984,-500.0,0.0001892,2]
[380194811,1755605432994,-500.0,0.0001892,2]
[380194813,1755605433005,-500.0,0.0001892,2]
[380194815,1755605433015,-500.0,0.0001892,2]
[380194817,1755605433025,-500.0,0.0001892,2]
[380194819,1755605433035,-500.0,0.0001892,2]
[380194821,1755605433044,-500.0,0.0001892,2]
[380194823,1755605433054,-500.0,0.0001892,2]
[380194825,1755605433064,-500.0,0.0001892,2]
[380194827,1755605433073,-500.0,0.0001892,2]
[380194829,1755605433083,-500.0,0.0001892,2]
[380194831,1755605433093,-500.0,0.0001892,2]
[380194846,1755605433212,-500.0,0.0001892,2]
[380194850,1755605433230,-500.0,0.0001892,2]
[380194853,1755605433240,-500.0,0.0001892,2]
[380194856,1755605433250,-500.0,0.0001892,2]
[380194859,1755605433261,-500.0,0.0001892,2]
[380194862,1755605433270,-500.0,0.0001892,2]
[380194865,1755605433280,-500.0,0.0001892,2]
[380194868,1755605433289,-438.52417743,0.0001892,2]
[380194871,1755605433299,-500.0,0.0001892,2]
[380194874,1755605433310,-231.17684151,0.0001892,2]
[380194877,1755605433319,-148400.24621888,0.00018921,2]
[380194880,1755605433329,-1058.99295875,0.00018978,2]
[380194882,1755605433338,-874.9740542,0.00019024,2]
[380194885,1755605433348,-1058.99295873,0.00019043,2]
[380194888,1755605433358,-9570.96138232,0.00019078,2]
[380194891,1755605433369,-1000.0,0.00019078,2]
[380194894,1755605433379,-1058.99295873,0.00019108,2]
[380194898,1755605433388,-356.5261194,0.00019124,2]
[380194900,1755605433399,-1331.07502396,0.00019134,2]
[380194903,1755605433409,-227.1528896,0.00019166,2]
[380194906,1755605433419,-17842.522448,0.00019166,2]
[380194909,1755605433429,-1058.99295873,0.00019172,2]
[380194912,1755605433439,-555.04455739,0.00019173,2]
[380194915,1755605433449,-500.0,0.00019173,2]
[380194917,1755605433459,-500.0,0.00019173,2]
[380194919,1755605433468,-500.0,0.00019173,2]
[380194921,1755605433479,-500.0,0.00019173,2]
[380194923,1755605433489,-500.0,0.00019173,2]
[380194925,1755605433499,-500.0,0.00019173,2]
[380194927,1755605433509,-500.0,0.00019173,2]
[380194929,1755605433519,-231.55571979,0.00019173,2]
[380194931,1755605433529,-500.0,0.00019173,2]
[380194933,1755605433539,-500.0,0.00019173,2]
[380194935,1755605433549,-500.0,0.00019173,2]
[380194937,1755605433559,-500.0,0.00019173,2]
[380194939,1755605433568,-500.0,0.00019173,2]
[380194940,1755605433579,-500.0,0.00019173,2]
[380194941,1755605433591,-500.0,0.00019173,2]
[380194942,1755605433601,-500.0,0.00019173,2]
[380194943,1755605433610,-500.0,0.00019173,2]
[380194944,1755605433620,-500.0,0.00019177,2]
[380194945,1755605433630,-209.12660419,0.00019177,2]
[380194946,1755605433639,-618.51058851,0.00019178,2]
[380194947,1755605433650,-440.0,0.00019178,2]
[380194949,1755605433660,-480.0,0.00019178,2]
[380194951,1755605433670,-480.0,0.00019178,2]
[380194953,1755605433680,-480.0,0.00019178,2]
[380194955,1755605433689,-480.0,0.00019178,2]
[380194957,1755605433699,-240.97072022,0.00019178,2]
[380194959,1755605433710,-480.0,0.00019178,2]
[380194961,1755605433720,-500.0,0.00019178,2]
[380194963,1755605433730,-264.70647106,0.00019178,2]
[380194965,1755605433740,-480.0,0.00019178,2]
[380194967,1755605433750,-480.0,0.00019178,2]
[380194969,1755605433760,-480.0,0.00019178,2]
[380194971,1755605433769,-480.0,0.00019178,2]
[380194973,1755605433779,-480.0,0.00019178,2]
[380194975,1755605433789,-483.23857413,0.00019178,2]
[380194977,1755605433799,-504.61588804,0.00019178,2]
[380194979,1755605433808,-462.73999888,0.00019178,2]
[380194981,1755605433818,-480.0,0.00019178,2]
[380194983,1755605433827,-480.0,0.00019178,2]
[380194985,1755605433836,-10.40730524,0.00019178,2]
[380194988,1755605433854,-462.228,0.00019178,2]
[380194991,1755605433873,-7.36469476,0.00019178,2]
[380194993,1755605433882,-480.0,0.00019178,2]
[380194995,1755605433891,-423.38509182,0.00019178,2]
[380194996,1755605433900,-238.60825805,0.00019178,2]
[380195033,1755605438491,-500.0,0.0001892,2]
[380195035,1755605438500,-241.39174195,0.00019178,2]
[380195037,1755605438510,-460.0,0.00019178,2]
[380195039,1755605438519,-480.67668071,0.00019178,2]
[380195041,1755605438528,-480.0,0.00019178,2]
[380195043,1755605438537,-480.0,0.00019178,2]
[380195044,1755605438545,-480.0,0.00019178,2]
[380195046,1755605438555,-480.0,0.00019178,2]
[380195048,1755605438564,-480.0,0.00019178,2]
[380195050,1755605438575,-480.0,0.00019178,2]
[380195052,1755605438588,-480.0,0.00019178,2]
[380195054,1755605438597,-480.0,0.00019178,2]
[380195056,1755605438606,-482.16750129,0.00019178,2]
[380195058,1755605438615,-480.0,0.00019178,2]
[380195060,1755605438625,-460.0,0.00019178,2]
[380195062,1755605438635,-421.85644383,0.00019178,2]
[380195064,1755605438644,-480.0,0.00019178,2]
[380195066,1755605438656,-221.76112064,0.00019178,2]
[380195068,1755605438666,-477.04782362,0.00019178,2]
[380195070,1755605438676,-480.0,0.00019178,2]
[380195072,1755605438685,-480.0,0.00019178,2]
[380195074,1755605438694,-480.0,0.00019178,2]
[380195076,1755605438703,-480.0,0.00019178,2]
[380195078,1755605438713,-480.0,0.00019178,2]
[380195080,1755605438722,-480.0,0.00019178,2]
[380195082,1755605438732,-480.61422028,0.00019178,2]
[380195084,1755605438741,-480.0,0.00019178,2]
[380195085,1755605438750,-480.0,0.00019178,2]
[380195087,1755605438759,-480.0,0.00019178,2]
[380195088,1755605438769,-480.0,0.00019178,2]
[380195089,1755605438778,-480.0,0.00019178,2]
[380195091,1755605438787,-460.0,0.00019178,2]
[380195093,1755605438796,-480.0,0.00019178,2]
[380195094,1755605438806,-480.0,0.00019178,2]
[380195095,1755605438814,-480.0,0.00019178,2]
[380195096,1755605438824,-480.0,0.00019178,2]
[380195097,1755605438833,-480.0,0.00019178,2]
[380195098,1755605438842,-480.0,0.00019178,2]
[380195099,1755605438852,-480.0,0.00019178,2]
[380195100,1755605438862,-480.0,0.00019178,2]
[380195101,1755605438872,-480.0,0.00019178,2]
[380195102,1755605438881,-480.0,0.00019178,2]
[380195103,1755605438891,-480.0,0.00019178,2]
[380195104,1755605438900,-635.55,0.00019178,2]
[380195105,1755605438909,-480.0,0.00019178,2]
[380195106,1755605438919,-480.0,0.00019178,2]
[380195107,1755605438928,-157.63815913,0.00019178,2]
[380195108,1755605438938,-470.88975917,0.00019178,2]
[380195109,1755605438947,-480.0,0.00019178,2]
[380195110,1755605438956,-480.0,0.00019178,2]
[380195111,1755605438967,-480.0,0.00019178,2]
[380195112,1755605438976,-480.0,0.00019178,2]
[380195113,1755605438986,-480.0,0.00019178,2]
[380195114,1755605438995,-480.0,0.00019178,2]
[380195115,1755605439004,-480.0,0.00019178,2]
[380195116,1755605439014,-480.0,0.00019178,2]
[380195117,1755605439023,-480.0,0.00019178,2]
[380195118,1755605439032,-480.0,0.00019178,2]
[380195119,1755605439042,-480.0,0.00019178,2]
[380195120,1755605439052,-480.0,0.00019178,2]
[380195121,1755605439061,-480.0,0.00019178,2]
[380195122,1755605439071,-480.0,0.00019178,2]
[380195123,1755605439080,-480.0,0.00019178,2]
[380195124,1755605439090,-480.0,0.00019178,2]
[380195125,1755605439099,-500.0,0.00019178,2]
[380195126,1755605439109,-500.0,0.00019178,2]
[380195127,1755605439118,-173.7858844,0.00019178,2]
[380195128,1755605439129,-480.0,0.00019178,2]
[380195129,1755605439139,-480.0,0.00019178,2]
[380195130,1755605439148,-480.0,0.00019178,2]
[380195131,1755605439158,-480.0,0.00019178,2]
[380195132,1755605439167,-151.0,0.00019178,2]
[380195133,1755605439176,-151.0,0.00019178,2]
[380195134,1755605439186,-151.0,0.00019178,2]
[380195135,1755605439196,-480.0,0.00019178,2]
[380195136,1755605439206,-151.0,0.00019178,2]
[380195137,1755605439215,-480.0,0.00019178,2]
[380195138,1755605439224,-480.0,0.00019178,2]
[380195139,1755605439234,-480.0,0.00019178,2]
[380195140,1755605439244,-480.0,0.00019178,2]
[380195141,1755605439253,-151.0,0.00019178,2]
[380195142,1755605439262,-480.0,0.00019178,2]
[380195143,1755605439272,-480.0,0.00019178,2]
[380195144,1755605439281,-151.0,0.00019178,2]
[380195145,1755605439291,-480.0,0.00019178,2]
[380195146,1755605439301,-500.0,0.00019178,2]
[380195147,1755605439310,-480.0,0.00019178,2]
[380195148,1755605439319,-480.0,0.00019178,2]
[380195149,1755605439328,-480.0,0.00019178,2]
[380195150,1755605439338,-151.0,0.00019178,2]
[380195151,1755605439347,-152.61271,0.00019178,2]
[380195152,1755605439356,-480.0,0.00019178,2]
[380195153,1755605439365,-500.0,0.00019178,2]
[380195154,1755605439374,-480.0,0.00019178,2]
[380195155,1755605439383,-253.59629495,0.00019178,2]
[380195156,1755605439392,-480.0,0.00019178,2]
[380195157,1755605439402,-480.0,0.00019178,2]
[380195158,1755605439411,-480.0,0.00019178,2]
[380195159,1755605439421,-480.0,0.00019178,2]
[380195160,1755605439430,-480.0,0.00019178,2]
[380195161,1755605439440,-278.91068869,0.00019178,2]
[380195162,1755605439449,-480.0,0.00019178,2]
[380195163,1755605439458,-480.0,0.00019178,2]
[380195164,1755605439467,-480.0,0.00019178,2]
[380195165,1755605439477,-441.1049547,0.00019178,2]
[380195166,1755605439486,-480.0,0.00019178,2]
[380195167,1755605439495,-480.0,0.00019178,2]
[380195168,1755605439505,-480.0,0.00019178,2]
[380195169,1755605439514,-480.0,0.00019178,2]
[380195170,1755605439523,-480.0,0.00019178,2]
[380195171,1755605439532,-480.0,0.00019178,2]
[380195172,1755605439542,-480.0,0.00019178,2]
[380195173,1755605439552,-480.0,0.00019178,2]
[380195174,1755605439561,-480.0,0.00019178,2]
[380195175,1755605439570,-480.0,0.00019178,2]
[380195176,1755605439584,-480.0,0.00019178,2]
[380195177,1755605439593,-441.16726403,0.00019178,2]
[380195178,1755605439602,-480.0,0.00019178,2]
[380195179,1755605439612,-480.0,0.00019178,2]
[380195180,1755605439622,-480.0,0.00019178,2]
[380195181,1755605439632,-480.0,0.00019178,2]
[380195182,1755605439641,-440.0,0.00019178,2]
[380195183,1755605439651,-480.0,0.00019178,2]
[380195184,1755605439661,-459.40197119,0.00019178,2]
[380195185,1755605439671,-480.0,0.00019178,2]
[380195186,1755605439680,-345.16919065,0.00019178,2]
[380195187,1755605439690,-183.58348007,0.00019178,2]
[380195188,1755605439699,-480.0,0.00019178,2]
[380195189,1755605439708,-5713.31,0.00019178,2]
[380195190,1755605439718,-480.0,0.00019178,2]
[380195191,1755605439727,-480.0,0.00019178,2]
[380195192,1755605439736,-480.0,0.00019178,2]
[380195193,1755605439746,-480.0,0.00019178,2]
[380195194,1755605439755,-465.53999292,0.00019178,2]
[380195195,1755605439764,-481.51864561,0.00019178,2]
[380195196,1755605439774,-480.0,0.00019178,2]
[380195197,1755605439783,-440.0,0.00019178,2]
[380195198,1755605439792,-1013.96,0.00019178,2]
[380195199,1755605439802,-468.21008992,0.00019178,2]
[380195200,1755605439811,-610.66914066,0.00019178,2]
[380195201,1755605439820,-480.0,0.00019178,2]
[380195202,1755605439829,-480.0,0.00019178,2]
[380195203,1755605439839,-480.0,0.00019178,2]
[380195204,1755605439848,-480.0,0.00019178,2]
[380195205,1755605439858,-480.0,0.00019178,2]
[380195206,1755605439869,-480.0,0.00019178,2]
[380195207,1755605439877,-480.0,0.00019178,2]
[380195210,1755605439967,-480.0,0.00019178,2]
[380195211,1755605439977,-480.0,0.00019178,2]
[380195212,1755605439986,-480.0,0.00019178,2]
[380195213,1755605439996,-480.0,0.00019178,2]
[380195214,1755605440005,-480.0,0.00019178,2]
[380195216,1755605440015,-480.0,0.00019178,2]
[380195217,1755605440024,-480.0,0.00019178,2]
[380195218,1755605440034,-480.0,0.00019178,2]
[380195219,1755605440043,-462.58942858,0.00019178,2]
[380195220,1755605440054,-480.0,0.00019178,2]
[380195221,1755605440063,-480.0,0.00019178,2]
[380195222,1755605440073,-480.0,0.00019178,2]
[380195223,1755605440082,-364.82527584,0.00019178,2]
[380195224,1755605440091,-480.0,0.00019178,2]
[380195225,1755605440101,-480.0,0.00019178,2]
[380195227,1755605440110,-500.0,0.00019178,2]
[380195228,1755605440119,-480.0,0.00019178,2]
[380195229,1755605440128,-480.0,0.00019178,2]
[380195230,1755605440137,-151.0,0.00019178,2]
[380195231,1755605440147,-346.403396,0.00019178,2]
[380195232,1755605440157,-460.0,0.00019178,2]
[380195233,1755605440166,-346.403396,0.00019178,2]
[380195234,1755605440176,-480.0,0.00019178,2]
[380195235,1755605440186,-480.0,0.00019178,2]
[380195236,1755605440194,-480.0,0.00019178,2]
[380195237,1755605440204,-480.0,0.00019178,2]
[380195239,1755605440213,-569.92274895,0.00019178,2]
[380195240,1755605440222,-480.0,0.00019178,2]
[380195242,1755605440232,-480.0,0.00019178,2]
[380195244,1755605440242,-480.0,0.00019178,2]
[380195245,1755605440251,-480.0,0.00019178,2]
[380195246,1755605440261,-480.0,0.00019178,2]
[380195247,1755605440270,-480.0,0.00019178,2]
[380195248,1755605440280,-480.0,0.00019178,2]
[380195249,1755605440289,-480.0,0.00019178,2]
[380195250,1755605440299,-480.0,0.00019178,2]
[380195251,1755605440308,-480.0,0.00019178,2]
[380195252,1755605440318,-481.09507613,0.00019178,2]
[380195254,1755605440328,-480.0,0.00019178,2]
[380195256,1755605440338,-480.0,0.00019178,2]
[380195258,1755605440347,-480.0,0.00019178,2]
[380195260,1755605440356,-480.0,0.00019178,2]
[380195261,1755605440366,-480.0,0.00019178,2]
[380195262,1755605440375,-480.0,0.00019178,2]
[380195263,1755605440385,-480.0,0.00019178,2]
[380195264,1755605440394,-480.0,0.00019178,2]
[380195265,1755605440403,-480.0,0.00019178,2]
[380195266,1755605440412,-480.0,0.00019178,2]
[380195267,1755605440422,-480.0,0.00019178,2]
[380195268,1755605440431,-480.0,0.00019178,2]
[380195269,1755605440440,-375.6162576,0.00019178,2]
[380195270,1755605440450,-480.0,0.00019178,2]
[380195271,1755605440459,-480.0,0.00019178,2]
[380195272,1755605440469,-480.0,0.00019178,2]
[380195273,1755605440478,-480.0,0.00019178,2]
[380195274,1755605440487,-480.0,0.00019178,2]
[380195275,1755605440496,-480.0,0.00019178,2]